Workbook

Sheet Topics
A1: Highline Excel 2016 Class 05: Introduction To Array Formulas
A3: Topics:
A4: 1 | B4: Aggregate vs. Array Calculations & Define Array
A5: 2 | B5: Define Array Formulas
A6: 3 | B6: Example of non-array formula. Standard Formula: Formulas that calculate a single answer. Goal: Calculate Total Expense and Total Net Income.
A7: 4 | B7: Example of Array Formula
A8: 5 | B8: How to decide whether or not you must use Ctrl + Shift + Enter to put the array formula into the cell.
A9: 6 | B9: Implicit Intersection.
A10: 7 | B10: SUMPRODUCT function to house an array calculation to avoid using Ctrl + Shift + Enter.
A11: 8 | B11: Array Formula 2: Math Array Operations. Goal: Calculate Overall Total Expense in a single cell.
A12: 9 | B12: Array Formula 3: Math Array Operations. Goal: Calculate Overall Net Income in a single cell.
A13: 10 | B13: Formula 4: Use more than one argument in SUMPRODUCT. Goal: Calculate total Bank Deposit. Learn about SUMPRODUCT and discussion about size and dimensions of arrays in array calculations.
A14: 11 | B14: Array Formula 5: Function Argument Array Operation in k argument. Goal: Add 3 biggest and 3 smallest. Use Array Constant to avoid Ctrl + Shift + Enter.
A15: 12 | B15: Array Formula 6: Function Argument Array Operation in criteria1 argument. Goal: Add Sales for each Sales Team. Example of using an Array Formula to create a MUCH smaller formula than non-Array Formula alternatives.
A16: 13 | B16: No Example 7
A17: 14 | B17: Array Formula 8: Function Argument Array Operation in criteria1 argument. Goal: Score Myers-Briggs Test in Human Resource Department.
A18: 15 | B18: Array Formula 9: Function Argument Array Operation in criteria1 argument. Join Array Operation. Goal: Score Myers-Briggs Test in Human Resource Department.
A19: 16 | B19: List of Functions that can NEVER do Array Calculations.
A20: 17 | B20: Array Formula 12: Built-in Array Function: FREQUENCY. Goal: Count how many sales are in each category.

Sheet Video 02 Reminder
A1: Reminder from Video 02:
A3: Ex 10 | B3: Goal: Add Calls. | F3: Aggregate Calculations:
B4: Type of Formula: Aggregate Formula. Number Formula. | F4: Calculations that take two or more items and
B5: Formula Elements: Equal sign, Built-in Function, Range of Cells. | F5: calculate a single answer such as adding a column of numbers
B7: Day | C7: Calls Made | E7: Total Calls
B8: Monday | C8: 60 | E8: =SUM(C8:C12) -> 190
B9: Tuesday | C9: 30
B10: Wednesday | C10: 25
B11: Thursday | C11: 35
B12: Friday | C12: 40
A14: Ex 11 | B14: Goal: Add Top 3 Bowling Scores For Bowling Tournament. | F14: Array Calculations:
B15: Type of Formula: Array Formula. Number Formula. | F15: Calculations that operate on an array of items rather than single items
B16: Formula Elements: Equal sign, Built-in Function (Nested Functions), | F16: and which deliver an array of answers called a "resultant array".
B17: Range of Cells, Array Constant with causes LARGE to deliver 3 numbers.
C19: Add Top 3 | D19: Add Top 3 | E19: Add Top 3 | F19: Add Top 3
C20: =SUM(LARGE(C23:C31,{1,2,3})) -> 791 | D20: =SUM(LARGE(D23:D31,{1,2,3})) -> 749 | E20: =SUM(LARGE(E23:E31,{1,2,3})) -> 879 | F20: =SUM(LARGE(F23:F31,{1,2,3})) -> 853
B22: Tournament | C22: Scores for Tom | D22: Scores for Debbie | E22: Scores for SheliaDawn | F22: Scores for Chin
B23: Oakland | C23: 219 | D23: 243 | E23: 163 | F23: 156
B24: SF | C24: 235 | D24: 268 | E24: 209 | F24: 285
B25: Fremont | C25: 207 | D25: 238 | E25: 174 | F25: 292
B26: San Jose | C26: 183 | D26: 236 | E26: 195 | F26: 276
B27: El Cerrito | C27: 278 | D27: 194 | E27: 284 | F27: 230
B28: Berkeley | C28: 160 | D28: 195 | E28: 296 | F28: 257
B29: Concord | C29: 268 | D29: 173 | E29: 207 | F29: 249
B30: Vallejo | C30: 245 | D30: 221 | E30: 179 | F30: 223
B31: Hayward | C31: 233 | D31: 168 | E31: 299 | F31: 213

Sheet Cliff Notes
A1: Definition of Array Formula:
A2: 1) Calculation on an array of items rather than single items called an "Array Calculation" or "Array Operation".
A3: 2) Calculation results in an array of answer called "Resultant Array".
A4: 3) The Resultant Array can be used inside a larger formula, or it can be the final answer.
A5: 4) Some Array Formulas require you to enter the formula with the special keystroke Ctrl + Shift + Enter in order for it to evaluate to the correct answer.
A6: Whether or not you are required to use Ctrl + Shift + Enter is determined by:
A7: [1] The function argument that the Array Calculation sits in.
A8: *Five functions that can perform Array Calculations WITHOUT using Ctrl + Shift + Enter:
A9: SUMPRODUCT
A10: AGGREGATE
A11: LOOKUP
A12: INDEX
A13: CHI.SQ.TEST
A14: *All other functions that contain Array Calculations require Ctrl + Shift + Enter.
A15: [2] If the arrays being used in the Array Calculation are Array Constants, Ctrl + Shift + Enter is NOT required when you are entering the Array Formula into a single cell ([3] supersedes if you are entering Array Formula into multiple cells).
A16: [3] If you are entering the array of values into multiple cells simultaneously (like with an Array Function) you must use Ctrl + Shift + Enter.
A17: How Ctrl + Shift + Enter works:
A18: [1] When you use Ctrl + Shift + Enter, you are telling Excel that the formula is an Array Formula.
A19: [2] After you use Ctrl + Shift + Enter, Excel puts curly brackets { } at the beginning and end of the Array Formula to indicate that it understood that you were entering an Array Formula.
A20: [3] If you DON'T use Ctrl + Shift + Enter and you are required to, you will get a #VALUE! Error or the wrong answer.
A21: 5) Specific Array Functions like TRANSPOSE deliver an array of values and require that you highlight a range of cells and then use the key stroke Ctrl + Shift + Enter.
A22: 6) Array Formulas can be useful because they can allow: 1) compact Excel solutions, shorter formulas and sometimes array formulas are the only way to accomplish the goal.
A23: 7) Drawbacks for Array Formulas: with large Array Calculations, calculation time for the Excel file can slow down.

Sheet Array Formulas
A1: Standard Formula: Formulas that calculate a single answer. | G1: Definition of Array Formula:
A2: Goal: Calculate Total Expense and Total Net Income. | G2: 1) Calculation on an array of items rather than single items
A3: Month | B3: Jan | C3: Feb | D3: Mar | E3: Totals | G3: called "Array Calculation" or "Array Operation".
A4: Revenue | B4: 65487 | C4: 75894 | D4: 65007 | E4: =SUM(B4:D4) -> 206388 | G4: 2) Calculation results in an array of answer
A5: COGS | B5: =ROUND(B$4*$B13,2) -> 30422.63 | C5: 35257.3 | D5: 30199.64 | E5: 95879.57 | G5: called "Resultant Array".
A6: Operating | B6: 12756.17 | C6: 14783.34 | D6: 12662.67 | E6: 40202.18 | G6: 3) The Resultant Array can be used inside a larger formula, or it can be the final answer.
A7: Administrative | B7: 10110.37 | C7: 11717.08 | D7: 10036.27 | E7: 31863.72 | G7: 4) Array Formulas require the special keystroke Ctrl + Shift + Enter, except these situations:
A8: Other | B8: 2643.8 | C8: 3063.95 | D8: 2624.42 | E8: 8332.17 | H8: 1) One of these five functions:
A9: Total Expenses | B9: =SUM(B5:B8) -> 55932.97 | C9: =SUM(C5:C8) -> 64821.67 | D9: =SUM(D5:D8) -> 55523 | E9: 176277.64 | H9: SUMPRODUCT array argumnet allows Array Calculations with NO Ctrl + Shift + Enter. | Y9: 1) Five Special Functions that have arguments that do NOT require Ctrl + Shift + Enter
A10: Net Income | B10: =B4-B9 -> 9554.03 | C10: =C4-C9 -> 11072.33 | D10: =D4-D9 -> 9484 | E10: =E4-E9 -> 30110.36 | H10: AGGREGATE array argumnet allows Array Calculations with NO Ctrl + Shift + Enter. | Y10: SUMPRODUCT
H11: LOOKUP | Y11: AGGREGATE
A12: Assumption Table (Formula Inputs) | H12: INDEX | Y12: LOOKUP
A13: COGS | B13: 0.4645598331 | H13: CHI.SQ.TEST | Y13: INDEX
A14: Operating | B14: 0.1947892829 | H14: 2) The arrays are Array Constants NO Ctrl + Shift + Enter. | Y14: CHI.SQ.TEST
A15: Administrative | B15: 0.1543874927 | Y15: ** All other function argumnets require Ctrl + Shift + Enter
A16: Other | B16: 0.04037141295 | Y16: 2) If you use Array Constant, NOT require Ctrl + Shift + Enter
Y17: 3) Entering Array Formula into multile cells simultaneously will require Ctrl + Shift + Enter
A18: COGS for Jan | D18: B4*B13 yields a single answer of 30422.63
A20: Array Formula 1: Math Array Operation.
A21: Goal: Calculate Total Expense for each month without making calculations in many cells.
A22: Month | B22: Jan | C22: Feb | D22: Mar
A23: Revenue | B23: 65487 | C23: 75894 | D23: 65007 | F23: B4*B13:B16 yields an array of answers of {30422.63;12756.17;10110.37;2643.8} (actual array ahs many more decimals)
A24: Total Expenses | F24: Ctrl + Shift + Enter because SUM number1 argument requires it. | N24: =IF(_xlfn.ISFORMULA(B24),_xlfn.FORMULATEXT(B24),"") -> 
A25: Total Expenses | F25: NO Ctrl + Shift + Enter because SUMPRODUCT array argument does not require it. | N25: =IF(_xlfn.ISFORMULA(B25),_xlfn.FORMULATEXT(B25),"") -> 
F26: It is all about Function Argument!!! :)
A27: Array Formula 2: Math Array Operations. | F27: When you use Ctrl + Shift + Enter, remember to look in formula bar to verify that curly brackets { } have been entered (only sure way to verify that it will calculate correctly.
A28: Goal: Calculate Overall Total Expense in a single cell. | F28: Error you get if you don't use Ctrl + Shift + Enter if it is required: #VALUE!
F29: Why Array Formula?
A30: Total Expenses | D30: NO Ctrl + Shift + Enter… | F30: Because we did not need all the individual numbers & we did not want to make many calculations in many cells.
F31: We wanted our Excel solution to be more compact.
A32: Array Formula 3: Math Array Operations.
A33: Goal: Calculate Overall Net Income in a single cell.
A35: Net Income | D35: NO Ctrl + Shift + Enter because SUMPRODUCT array argument does not require it.
A37: Formula 4: Use more than one argument in SUMPRODUCT.
A38: Goal: Calculate total Bank Deposit.
A40: Bill Denomination | B40: 1 | C40: 5 | D40: 10 | E40: 20 | F40: 100
A41: Number Bills | B41: 16 | C41: 5 | D41: 22 | E41: 43 | F41: 5
A43: Bank Deposit | D43: =IF(_xlfn.ISFORMULA(B43),_xlfn.FORMULATEXT(B43),"") -> 
A44: Bank Deposit | G44: If you are multiplying row x row or column x column or table x table (same thing times same thing) the demensions of the arrays must be the same
A45: Bank Deposit
A46: Bank Deposit
A48: Array Formula 5: Function Argument Array Operation in k argument.
A49: Goal: Add 3 biggest and 3 smallest.
A51: Add 3 Biggest | C51: Add 3 Fastest | E51: By giving k argument three numbers {1,2,3}, we are telling LARGE and SMALL to deliver 3 answers
E52: NO Ctrl + Shift + Enter because when you use an Array Constant, Ctrl + Shift + Enter is NOT required.
A54: Sales | C54: Race Times (min)
A55: 1102 | C55: 1.18
A56: 265 | C56: 1.13
A57: 862 | C57: 1.16
A58: 300 | C58: 1.28
A59: 1161 | C59: 1.2
A60: 526 | C60: 1.06
A61: 1094 | C61: 1.3
A62: 708 | C62: 1.04
A63: 1094 | C63: 1.17
A66: Array Formula 6: Function Argument Array Operation in criteria1 argument.
A67: Goal: Add Sales for each Sales Team.
A69: Sales Rep | B69: Sales | E69: Sales Team 1 | F69: Sales Team 2 | G69: Sales Team 3 | H69: Sales Team 4
A70: Kip | B70: 457 | E70: June | F70: Gigi | G70: Fred | H70: Irene
A71: June | B71: 368 | E71: Sioux | F71: Chin | G71: Kip | H71: Al
A72: Gigi | B72: 725 | E72: Poppi | F72: Sandi | G72: Abdi | H72: Mel
A73: Mel | B73: 736 | E73: Tyrone | F73: Shelia | G73: Pham | H73: Mo
A74: Tyrone | B74: 606
A75: Chin | B75: 1418 | D75: Totals | J75: NO Ctrl + Shift + Enter because SUMPRODUCT array argument does not require it.
A76: Abdi | B76: 1110 | D76: Totals | E76: =SUMIFS($B$70:$B$111,$A$70:$A$111,E70)+SUMIFS($B$70:$B$111,$A$70:$A$111,E71)+SUMIFS($B$70:$B$111,$A$70:$A$111,E72)+SUMIFS($B$70:$B$111,$A$70:$A$111,E73) -> 9608 | F76: =SUMIFS($B$70:$B$111,$A$70:$A$111,F70)+SUMIFS($B$70:$B$111,$A$70:$A$111,F71)+SUMIFS($B$70:$B$111,$A$70:$A$111,F72)+SUMIFS($B$70:$B$111,$A$70:$A$111,F73) -> 13631 | G76: =SUMIFS($B$70:$B$111,$A$70:$A$111,G70)+SUMIFS($B$70:$B$111,$A$70:$A$111,G71)+SUMIFS($B$70:$B$111,$A$70:$A$111,G72)+SUMIFS($B$70:$B$111,$A$70:$A$111,G73) -> 9140 | H76: =SUMIFS($B$70:$B$111,$A$70:$A$111,H70)+SUMIFS($B$70:$B$111,$A$70:$A$111,H71)+SUMIFS($B$70:$B$111,$A$70:$A$111,H72)+SUMIFS($B$70:$B$111,$A$70:$A$111,H73) -> 4524
A77: Sandi | B77: 1489
A78: June | B78: 175 | E78: *We give the criteria1 argument 4 criteria, so SUMIFS delivers 4 answers. (this is OR Criteria)
A79: Shelia | B79: 1354 | E79: *We use SUMPRODUCT to add the Resultant Array created by SUMIFS.
A80: Pham | B80: 132 | E80: *We choose to create Array formula to avoid longer formula with many SUMIFS.
A81: Gigi | B81: 449
A82: Mo | B82: 1333
A83: Sandi | B83: 1571
A84: Chin | B84: 1553
A85: Tyrone | B85: 1196
A86: June | B86: 679
A87: Pham | B87: 221
A88: Pham | B88: 1097
A89: Gigi | B89: 473
A90: Tyrone | B90: 573
A91: Gigi | B91: 1160
A92: June | B92: 1268
A93: Sandi | B93: 1635
A94: Mel | B94: 152
A95: Poppi | B95: 603
A96: Irene | B96: 458
A97: Sioux | B97: 741
A98: Fred | B98: 486
A99: Tyrone | B99: 1227
A100: Poppi | B100: 981
A101: Fred | B101: 798
A102: Sioux | B102: 1191
A103: Gigi | B103: 363
A104: Abdi | B104: 1332
A105: Mo | B105: 1289
A106: Fred | B106: 1625
A107: Pham | B107: 1261
A108: Mo | B108: 556
A109: Sandi | B109: 1441
A110: Fred | B110: 337
A111: Fred | B111: 284
A114: Array Formula 8: Function Argument Array Operation in criteria1 argument.
A115: Goal: Score Myers-Briggs Test in Human Resource Department.
A117: Test Results: | E117: Lookup Table:
E118: Score Myers-Briggs Test
A119: Question | B119: Answer | C119: Join | E119: E | F119: F | G119: I | H119: J | I119: N | J119: P | K119: S | L119: T
A120: 1 | B120: a | C120: =A120&B120 -> 1a | E120: 11b | F120: 12b | G120: 11a | H120: 18b | I120: 10a | J120: 18a | K120: 10b | L120: 12a
A121: 2 | B121: a | C121: =A121&B121 -> 2a | E121: 15a | F121: 14a | G121: 15b | H121: 23b | I121: 13b | J121: 23a | K121: 13a | L121: 14b
A122: 3 | B122: b | C122: 3b | E122: 19a | F122: 20b | G122: 19b | H122: 26a | I122: 16b | J122: 26b | K122: 16a | L122: 20a
A123: 4 | B123: a | C123: 4a | E123: 22b | F123: 24a | G123: 22a | H123: 31a | I123: 17b | J123: 31b | K123: 17a | L123: 24b
A124: 5 | B124: a | C124: 5a | E124: 27a | F124: 25b | G124: 27b | H124: 4a | I124: 1a | J124: 4b | K124: 1b | L124: 25a
A125: 6 | B125: b | C125: 6b | E125: 2b | F125: 29a | G125: 2a | H125: 7a | I125: 21b | J125: 7b | K125: 21a | L125: 29b
A126: 7 | B126: a | C126: 7a | E126: 32a | F126: 3b | G126: 32b | H126: 8b | I126: 28a | J126: 8a | K126: 28b | L126: 3a
A127: 8 | B127: a | C127: 8a | E127: 6b | F127: 5b | G127: 6a | H127: 9a | I127: 30a | J127: 9b | K127: 30b | L127: 5a
A128: 9 | B128: b | C128: 9b
A129: 10 | B129: b | C129: 10b | E129: Score:
A130: 11 | B130: b | C130: 11b | E130: E | F130: F | G130: I | H130: J | I130: N | J130: P | K130: S | L130: T
A131: 12 | B131: a | C131: 12a | N131: NO Ctrl + Shift + Enter because SUMPRODUCT array argument does not require it.
A132: 13 | B132: b | C132: 13b
A133: 14 | B133: a | C133: 14a
A134: 15 | B134: a | C134: 15a | E134: Array Formula 9: Function Argument Array Operation in criteria1 argument. Join Array Operation.
A135: 16 | B135: a | C135: 16a | E135: If we only had raw data for Question and Answer:
A136: 17 | B136: b | C136: 17b | N136: NO Ctrl + Shift + Enter because SUMPRODUCT array argument does not require it.
A137: 18 | B137: b | C137: 18b
A138: 19 | B138: b | C138: 19b
A139: 20 | B139: b | C139: 20b
A140: 21 | B140: b | C140: 21b
A141: 22 | B141: b | C141: 22b
A142: 23 | B142: b | C142: 23b
A143: 24 | B143: b | C143: 24b
A144: 25 | B144: a | C144: 25a
A145: 26 | B145: b | C145: 26b
A146: 27 | B146: b | C146: 27b
A147: 28 | B147: a | C147: 28a
A148: 29 | B148: b | C148: 29b
A149: 30 | B149: a | C149: 30a
A150: 31 | B150: b | C150: 31b
A151: 32 | B151: b | C151: 32b
A155: Array Formula 10: IF function array formula to filter out values for an aggregate function.
A156: Goal: Calculate Average Gross Profit for Each Sales Rep.
A158: Sales Rep | B158: Revenue | C158: COGS | E158: Average Gross Profit
A159: Jack | B159: 313.19 | C159: 165.99 | E159: Jack | H159: Ctrl + Shift + Enter because AVERAGE number1 argument & IF logical_test argument & IF value_if_true arguments all requires it.
A160: Tyson | B160: 573.69 | C160: 200.79 | E160: Tyson | H160: The "filter" to remove values that do not match the criteria = FALSE values.
A161: Gigi | B161: 67.54 | C161: 33.77 | E161: Gigi
A162: Pham | B162: 767.4 | C162: 399.05 | E162: Pham
A163: Pham | B163: 301.81 | C163: 126.76
A164: Jack | B164: 581.33 | C164: 342.98
A165: Pham | B165: 96.09 | C165: 51.89
A166: Pham | B166: 269.23 | C166: 129.23
A167: Tyson | B167: 10.57 | C167: 3.81
A168: Tyson | B168: 373.23 | C168: 134.36
A169: Gigi | B169: 811.18 | C169: 413.7
A170: Tyson | B170: 893.84 | C170: 429.04
A171: Gigi | B171: 806.82 | C171: 306.59
A172: Tyson | B172: 559.02 | C172: 318.64
A173: Gigi | B173: 700.4 | C173: 287.16
A174: Jack | B174: 530.68 | C174: 206.97
A175: Tyson | B175: 7.81 | C175: 2.73
A176: Gigi | B176: 284.95 | C176: 105.43
A177: Pham | B177: 476.02 | C177: 180.89
A178: Tyson | B178: 0.4 | C178: 0.16
A183: Array Formula 11: Built-in Array Function: TRANSPOSE.
A184: Goal: Transpose rows and columns so we have Assumption Table that allows Mixed Cell References.
A185: Month | B185: Jan | C185: Feb | D185: Mar | E185: Totals
A186: Revenue | B186: 65487 | C186: 75894 | D186: 65007 | E186: =SUM(B186:D186) -> 206388
A187: COGS | B187: =ROUND(B$186*$G195,2) -> 0 | C187: 0 | D187: 0 | E187: 0
A188: Operating | B188: 0 | C188: 0 | D188: 0 | E188: 0
A189: Administrative | B189: 0 | C189: 0 | D189: 0 | E189: 0
A190: Other | B190: 0 | C190: 0 | D190: 0 | E190: 0
A191: Total Expenses | B191: =SUM(B187:B190) -> 0 | C191: =SUM(C187:C190) -> 0 | D191: =SUM(D187:D190) -> 0 | E191: 0
A192: Net Income | B192: =B186-B191 -> 65487 | C192: =C186-C191 -> 75894 | D192: =D186-D191 -> 65007 | E192: 206388
A194: Assumption Table (Formula Inputs) | F194: Assumption Table
A195: COGS | B195: Operating | C195: Administrative | D195: Other | J195: Ctrl + / to highlight current array.
A196: 0.4645598331 | B196: 0.1947892829 | C196: 0.1543874927 | D196: 0.05
A198: TRANSPOSE function converts a horizontal range to a vertical range, and vice versa.
A199: 1) Count Rows and Columns = 2 x 4
A200: 2) Highlight range that is 4 x 2 (rows and columns)
A201: 3) Use Array Function TRANSPOSE
A202: 4) Must use Ctrl + Shift + Enter because we are entering an array into multiple cells simultaneously.
A203: **Note Array of values is considered a single unit. You cannot delete one cell in the array, or insert a row. The only way to delete is to delete the whole thing.
A206: Array Formula 12: Built-in Array Function: FREQUENCY.
A207: Goal: Count how many sales are in each category.
A209: Sales | C209: Category | D209: Upper Limit | E209: Frequency | I209: Upper Limits "hard coded" into formula:
A210: 249.99 | C210: ="Sales <= "&DOLLAR(D210,0) -> Sales <= $250 | D210: 250 | I210: Frequency
A211: 250 | C211: =DOLLAR(D210,0)&" < Sales <= "&DOLLAR(D211,0) -> $250 < Sales <= $500 | D211: 500 | I211: =FREQUENCY(A210:A222,{250;500;750;1000}) -> 2
A212: 250.01 | C212: $500 < Sales <= $750 | D212: 750 | I212: 4
A213: 450 | C213: $750 < Sales <= $1,000 | D213: 1000 | I213: 1
A214: 499.99 | C214: ="Sales > "&DOLLAR(D213,0) -> Sales > $1,000 | I214: 5
A215: 500 | I215: 1
A216: 500.01 | C216: FREQUENCY counts how many numbers are in each category.
A217: 800 | C217: The bins_array argument contains the upper values for the categories—numbers only.
A218: 900 | C218: The data_array argument contains the values to count—numbers only.
A219: 850 | C219: FREQUENCY always creates one more category than the number of upper limits you give it.
A220: 800 | C220: Steps:
A221: 1000 | C221: 1) Highlight range that is row taller than there are Upper Limits.
A222: 2000 | C222: 2) Use Array Function FREQUENCY
C223: 3) Must use Ctrl + Shift + Enter because we are entering an array into multiple cells simultaneously.
A229: Array Formula 13: Comparative Array Operation.
A230: Goal: Get Min for each City.
A232: Location | B232: Time (Minutes) To Assemble Product | D232: Location | E232: Min Time
A233: Seattle | B233: 6.7 | D233: Seattle | E233: =MIN(IF($A$233:$A$392=D233,$B$233:$B$392)) -> 4.2 | G233: Ctrl + Shift + Enter because MIN number1 argument & IF logical_test argument requires it.
... 170 more rows

Sheet Array Formulas (an)
A1: Standard Formula: Formulas that calculate a single answer. | G1: Definition of Array Formula:
A2: Goal: Calculate Total Expense and Total Net Income. | G2: 1) Calculation on an array of items rather than single items
A3: Month | B3: Jan | C3: Feb | D3: Mar | E3: Totals | G3: called "Array Calculation" or "Array Operation".
A4: Revenue | B4: 65487 | C4: 75894 | D4: 65007 | E4: =SUM(B4:D4) -> 206388 | G4: 2) Calculation results in an array of answer
A5: COGS | B5: =ROUND(B$4*$B13,2) -> 30422.63 | C5: 35257.3 | D5: 30199.64 | E5: 95879.57 | G5: called "Resultant Array".
A6: Operating | B6: 12756.17 | C6: 14783.34 | D6: 12662.67 | E6: 40202.18 | G6: 3) The Resultant Array can be used inside a larger formula, or it can be the final answer.
A7: Administrative | B7: 10110.37 | C7: 11717.08 | D7: 10036.27 | E7: 31863.72 | G7: 4) Array Formulas require the special keystroke Ctrl + Shift + Enter, except these situations:
A8: Other | B8: 2643.8 | C8: 3063.95 | D8: 2624.42 | E8: 8332.17 | H8: 1) One of these five functions:
A9: Total Expenses | B9: =SUM(B5:B8) -> 55932.97 | C9: =SUM(C5:C8) -> 64821.67 | D9: =SUM(D5:D8) -> 55523 | E9: 176277.64 | H9: SUMPRODUCT array argumnet allows Array Calculations with NO Ctrl + Shift + Enter. | Y9: 1) Five Special Functions that have arguments that do NOT require Ctrl + Shift + Enter
A10: Net Income | B10: =B4-B9 -> 9554.03 | C10: =C4-C9 -> 11072.33 | D10: =D4-D9 -> 9484 | E10: =E4-E9 -> 30110.36 | H10: AGGREGATE array argumnet allows Array Calculations with NO Ctrl + Shift + Enter. | Y10: SUMPRODUCT
H11: LOOKUP | Y11: AGGREGATE
A12: Assumption Table (Formula Inputs) | H12: INDEX | Y12: LOOKUP
A13: COGS | B13: 0.4645598331 | H13: CHI.SQ.TEST | Y13: INDEX
A14: Operating | B14: 0.1947892829 | H14: 2) The arrays are Array Constants NO Ctrl + Shift + Enter. | Y14: CHI.SQ.TEST
A15: Administrative | B15: 0.1543874927 | Y15: ** All other function argumnets require Ctrl + Shift + Enter
A16: Other | B16: 0.04037141295 | Y16: 2) If you use Array Constant, NOT require Ctrl + Shift + Enter
Y17: 3) Entering Array Formula into multile cells simultaneously will require Ctrl + Shift + Enter
A18: COGS for Jan | B18: =B4*B13 -> 30422.62979 | D18: B4*B13 yields a single answer of 30422.63
A20: Array Formula 1: Math Array Operation.
A21: Goal: Calculate Total Expense for each month without making calculations in many cells.
A22: Month | B22: Jan | C22: Feb | D22: Mar
A23: Revenue | B23: 65487 | C23: 75894 | D23: 65007 | F23: B4*B13:B16 yields an array of answers of {30422.63;12756.17;10110.37;2643.8} (actual array ahs many more decimals)
A24: Total Expenses | B24: =SUM(ROUND(B4*$B$13:$B$16,2)) -> 55932.97 | C24: =SUM(ROUND(C4*$B$13:$B$16,2)) -> 64821.67 | D24: =SUM(ROUND(D4*$B$13:$B$16,2)) -> 55523 | F24: Ctrl + Shift + Enter because SUM number1 argument requires it. | N24: =IF(_xlfn.ISFORMULA(B24),_xlfn.FORMULATEXT(B24),"") -> {=SUM(ROUND(B4*$B$13:$B$16,2))}
A25: Total Expenses | B25: =SUMPRODUCT(ROUND(B4*$B$13:$B$16,2)) -> 55932.97 | C25: =SUMPRODUCT(ROUND(C4*$B$13:$B$16,2)) -> 64821.67 | D25: 55523 | F25: NO Ctrl + Shift + Enter because SUMPRODUCT array argument does not require it. | N25: =IF(_xlfn.ISFORMULA(B25),_xlfn.FORMULATEXT(B25),"") -> =SUMPRODUCT(ROUND(B4*$B$13:$B$16,2))
F26: It is all about Function Argument!!! :)
A27: Array Formula 2: Math Array Operations. | F27: When you use Ctrl + Shift + Enter, remember to look in formula bar to verify that curly brackets { } have been entered (only sure way to verify that it will calculate correctly.
A28: Goal: Calculate Overall Total Expense in a single cell. | F28: Error you get if you don't use Ctrl + Shift + Enter if it is required: #VALUE!
F29: Why Array Formula?
A30: Total Expenses | B30: =SUMPRODUCT(ROUND(B23:D23*B13:B16,2)) -> 176277.64 | D30: NO Ctrl + Shift + Enter… | F30: Because we did not need all the individual numbers & we did not want to make many calculations in many cells.
F31: We wanted our Excel solution to be more compact.
A32: Array Formula 3: Math Array Operations.
A33: Goal: Calculate Overall Net Income in a single cell.
A35: Net Income | B35: =SUM(B23:D23)-SUMPRODUCT(ROUND(B23:D23*B13:B16,2)) -> 30110.36 | D35: NO Ctrl + Shift + Enter because SUMPRODUCT array argument does not require it.
A37: Formula 4: Use more than one argument in SUMPRODUCT.
A38: Goal: Calculate total Bank Deposit.
A40: Bill Denomination | B40: 1 | C40: 5 | D40: 10 | E40: 20 | F40: 100
A41: Number Bills | B41: 16 | C41: 5 | D41: 22 | E41: 43 | F41: 5
A43: Bank Deposit | B43: =B40*B41+C40*C41+D40*D41+E40*E41+F40*F41 -> 1621 | D43: =IF(_xlfn.ISFORMULA(B43),_xlfn.FORMULATEXT(B43),"") -> =B40*B41+C40*C41+D40*D41+E40*E41+F40*F41
A44: Bank Deposit | B44: =SUMPRODUCT(B40:F40,B41:F41) -> 1621 | D44: =SUMPRODUCT(B40:F40,B41:F41) | G44: If you are multiplying row x row or column x column or table x table (same thing times same thing) the demensions of the arrays must be the same
A45: Bank Deposit | B45: =SUMPRODUCT(B40:E40,B41:F41) ->  | D45: =SUMPRODUCT(B40:E40,B41:F41)
A46: Bank Deposit
A48: Array Formula 5: Function Argument Array Operation in k argument.
A49: Goal: Add 3 biggest and 3 smallest.
A51: Add 3 Biggest | C51: Add 3 Fastest | E51: By giving k argument three numbers {1,2,3}, we are telling LARGE and SMALL to deliver 3 answers
A52: =SUM(LARGE(A55:A63,{1,2,3})) -> 3357 | C52: =SUM(SMALL(C55:C63,{1,2,3})) -> 3.23 | E52: NO Ctrl + Shift + Enter because when you use an Array Constant, Ctrl + Shift + Enter is NOT required.
A54: Sales | C54: Race Times (min)
A55: 1102 | C55: 1.18
A56: 265 | C56: 1.13
A57: 862 | C57: 1.16
A58: 300 | C58: 1.28
A59: 1161 | C59: 1.2
A60: 526 | C60: 1.06
A61: 1094 | C61: 1.3
A62: 708 | C62: 1.04
A63: 1094 | C63: 1.17
A66: Array Formula 6: Function Argument Array Operation in criteria1 argument.
A67: Goal: Add Sales for each Sales Team.
A69: Sales Rep | B69: Sales | E69: Sales Team 1 | F69: Sales Team 2 | G69: Sales Team 3 | H69: Sales Team 4
A70: Kip | B70: 457 | E70: June | F70: Gigi | G70: Fred | H70: Irene
A71: June | B71: 368 | E71: Sioux | F71: Chin | G71: Kip | H71: Al
A72: Gigi | B72: 725 | E72: Poppi | F72: Sandi | G72: Abdi | H72: Mel
A73: Mel | B73: 736 | E73: Tyrone | F73: Shelia | G73: Pham | H73: Mo
A74: Tyrone | B74: 606
A75: Chin | B75: 1418 | D75: Totals | E75: =SUMPRODUCT(SUMIFS($B$70:$B$111,$A$70:$A$111,E70:E73)) -> 9608 | F75: =SUMPRODUCT(SUMIFS($B$70:$B$111,$A$70:$A$111,F70:F73)) -> 13631 | G75: =SUMPRODUCT(SUMIFS($B$70:$B$111,$A$70:$A$111,G70:G73)) -> 9140 | H75: =SUMPRODUCT(SUMIFS($B$70:$B$111,$A$70:$A$111,H70:H73)) -> 4524 | J75: NO Ctrl + Shift + Enter because SUMPRODUCT array argument does not require it.
A76: Abdi | B76: 1110 | D76: Totals | E76: =SUMIFS($B$70:$B$111,$A$70:$A$111,E70)+SUMIFS($B$70:$B$111,$A$70:$A$111,E71)+SUMIFS($B$70:$B$111,$A$70:$A$111,E72)+SUMIFS($B$70:$B$111,$A$70:$A$111,E73) -> 9608 | F76: =SUMIFS($B$70:$B$111,$A$70:$A$111,F70)+SUMIFS($B$70:$B$111,$A$70:$A$111,F71)+SUMIFS($B$70:$B$111,$A$70:$A$111,F72)+SUMIFS($B$70:$B$111,$A$70:$A$111,F73) -> 13631 | G76: =SUMIFS($B$70:$B$111,$A$70:$A$111,G70)+SUMIFS($B$70:$B$111,$A$70:$A$111,G71)+SUMIFS($B$70:$B$111,$A$70:$A$111,G72)+SUMIFS($B$70:$B$111,$A$70:$A$111,G73) -> 9140 | H76: =SUMIFS($B$70:$B$111,$A$70:$A$111,H70)+SUMIFS($B$70:$B$111,$A$70:$A$111,H71)+SUMIFS($B$70:$B$111,$A$70:$A$111,H72)+SUMIFS($B$70:$B$111,$A$70:$A$111,H73) -> 4524
A77: Sandi | B77: 1489
A78: June | B78: 175 | E78: *We give the criteria1 argument 4 criteria, so SUMIFS delivers 4 answers. (this is OR Criteria)
A79: Shelia | B79: 1354 | E79: *We use SUMPRODUCT to add the Resultant Array created by SUMIFS.
A80: Pham | B80: 132 | E80: *We choose to create Array formula to avoid longer formula with many SUMIFS.
A81: Gigi | B81: 449
A82: Mo | B82: 1333
A83: Sandi | B83: 1571
A84: Chin | B84: 1553
A85: Tyrone | B85: 1196
A86: June | B86: 679
A87: Pham | B87: 221
A88: Pham | B88: 1097
A89: Gigi | B89: 473
A90: Tyrone | B90: 573
A91: Gigi | B91: 1160
A92: June | B92: 1268
A93: Sandi | B93: 1635
A94: Mel | B94: 152
A95: Poppi | B95: 603
A96: Irene | B96: 458
A97: Sioux | B97: 741
A98: Fred | B98: 486
A99: Tyrone | B99: 1227
A100: Poppi | B100: 981
A101: Fred | B101: 798
A102: Sioux | B102: 1191
A103: Gigi | B103: 363
A104: Abdi | B104: 1332
A105: Mo | B105: 1289
A106: Fred | B106: 1625
A107: Pham | B107: 1261
A108: Mo | B108: 556
A109: Sandi | B109: 1441
A110: Fred | B110: 337
A111: Fred | B111: 284
A114: Array Formula 8: Function Argument Array Operation in criteria1 argument.
A115: Goal: Score Myers-Briggs Test in Human Resource Department.
A117: Test Results: | E117: Lookup Table:
E118: Score Myers-Briggs Test
A119: Question | B119: Answer | C119: Join | E119: E | F119: F | G119: I | H119: J | I119: N | J119: P | K119: S | L119: T
A120: 1 | B120: a | C120: =A120&B120 -> 1a | E120: 11b | F120: 12b | G120: 11a | H120: 18b | I120: 10a | J120: 18a | K120: 10b | L120: 12a
A121: 2 | B121: a | C121: =A121&B121 -> 2a | E121: 15a | F121: 14a | G121: 15b | H121: 23b | I121: 13b | J121: 23a | K121: 13a | L121: 14b
A122: 3 | B122: b | C122: 3b | E122: 19a | F122: 20b | G122: 19b | H122: 26a | I122: 16b | J122: 26b | K122: 16a | L122: 20a
A123: 4 | B123: a | C123: 4a | E123: 22b | F123: 24a | G123: 22a | H123: 31a | I123: 17b | J123: 31b | K123: 17a | L123: 24b
A124: 5 | B124: a | C124: 5a | E124: 27a | F124: 25b | G124: 27b | H124: 4a | I124: 1a | J124: 4b | K124: 1b | L124: 25a
A125: 6 | B125: b | C125: 6b | E125: 2b | F125: 29a | G125: 2a | H125: 7a | I125: 21b | J125: 7b | K125: 21a | L125: 29b
A126: 7 | B126: a | C126: 7a | E126: 32a | F126: 3b | G126: 32b | H126: 8b | I126: 28a | J126: 8a | K126: 28b | L126: 3a
A127: 8 | B127: a | C127: 8a | E127: 6b | F127: 5b | G127: 6a | H127: 9a | I127: 30a | J127: 9b | K127: 30b | L127: 5a
A128: 9 | B128: b | C128: 9b
A129: 10 | B129: b | C129: 10b | E129: Score:
A130: 11 | B130: b | C130: 11b | E130: E | F130: F | G130: I | H130: J | I130: N | J130: P | K130: S | L130: T
A131: 12 | B131: a | C131: 12a | E131: =SUMPRODUCT(COUNTIFS(E120:E127,$C$120:$C$151)) -> 4 | F131: =SUMPRODUCT(COUNTIFS(F120:F127,$C$120:$C$151)) -> 3 | G131: 4 | H131: 4 | I131: 6 | J131: 4 | K131: 2 | L131: 5 | N131: NO Ctrl + Shift + Enter because SUMPRODUCT array argument does not require it.
A132: 13 | B132: b | C132: 13b
A133: 14 | B133: a | C133: 14a
A134: 15 | B134: a | C134: 15a | E134: Array Formula 9: Function Argument Array Operation in criteria1 argument. Join Array Operation.
A135: 16 | B135: a | C135: 16a | E135: If we only had raw data for Question and Answer:
A136: 17 | B136: b | C136: 17b | E136: =SUMPRODUCT(COUNTIFS(E120:E127,$A$120:$A$151&$B$120:$B$151)) -> 4 | F136: =SUMPRODUCT(COUNTIFS(F120:F127,$A$120:$A$151&$B$120:$B$151)) -> 3 | G136: 4 | H136: 4 | I136: 6 | J136: 4 | K136: 2 | L136: 5 | N136: NO Ctrl + Shift + Enter because SUMPRODUCT array argument does not require it.
A137: 18 | B137: b | C137: 18b
A138: 19 | B138: b | C138: 19b
A139: 20 | B139: b | C139: 20b
A140: 21 | B140: b | C140: 21b
A141: 22 | B141: b | C141: 22b
A142: 23 | B142: b | C142: 23b
A143: 24 | B143: b | C143: 24b
A144: 25 | B144: a | C144: 25a
A145: 26 | B145: b | C145: 26b
A146: 27 | B146: b | C146: 27b
A147: 28 | B147: a | C147: 28a
A148: 29 | B148: b | C148: 29b
A149: 30 | B149: a | C149: 30a
A150: 31 | B150: b | C150: 31b
A151: 32 | B151: b | C151: 32b
A155: Array Formula 10: IF function array formula to filter out values for an aggregate function.
A156: Goal: Calculate Average Gross Profit for Each Sales Rep.
A158: Sales Rep | B158: Revenue | C158: COGS | E158: Average Gross Profit
A159: Jack | B159: 313.19 | C159: 165.99 | E159: Jack | F159: =AVERAGE(IF($A$159:$A$178=E159,$B$159:$B$178-$C$159:$C$178)) -> 236.42 | H159: Ctrl + Shift + Enter because AVERAGE number1 argument & IF logical_test argument & IF value_if_true arguments all requires it.
A160: Tyson | B160: 573.69 | C160: 200.79 | E160: Tyson | F160: =AVERAGE(IF($A$159:$A$178=E160,$B$159:$B$178-$C$159:$C$178)) -> 189.8614286 | H160: The "filter" to remove values that do not match the criteria = FALSE values.
A161: Gigi | B161: 67.54 | C161: 33.77 | E161: Gigi | F161: =AVERAGE(IF($A$159:$A$178=E161,$B$159:$B$178-$C$159:$C$178)) -> 304.848
A162: Pham | B162: 767.4 | C162: 399.05 | E162: Pham | F162: =AVERAGE(IF($A$159:$A$178=E162,$B$159:$B$178-$C$159:$C$178)) -> 204.546
A163: Pham | B163: 301.81 | C163: 126.76
A164: Jack | B164: 581.33 | C164: 342.98
A165: Pham | B165: 96.09 | C165: 51.89
A166: Pham | B166: 269.23 | C166: 129.23
A167: Tyson | B167: 10.57 | C167: 3.81
A168: Tyson | B168: 373.23 | C168: 134.36
A169: Gigi | B169: 811.18 | C169: 413.7
A170: Tyson | B170: 893.84 | C170: 429.04
A171: Gigi | B171: 806.82 | C171: 306.59
A172: Tyson | B172: 559.02 | C172: 318.64
A173: Gigi | B173: 700.4 | C173: 287.16
A174: Jack | B174: 530.68 | C174: 206.97
A175: Tyson | B175: 7.81 | C175: 2.73
A176: Gigi | B176: 284.95 | C176: 105.43
A177: Pham | B177: 476.02 | C177: 180.89
A178: Tyson | B178: 0.4 | C178: 0.16
A183: Array Formula 11: Built-in Array Function: TRANSPOSE.
A184: Goal: Transpose rows and columns so we have Assumption Table that allows Mixed Cell References.
A185: Month | B185: Jan | C185: Feb | D185: Mar | E185: Totals
A186: Revenue | B186: 65487 | C186: 75894 | D186: 65007 | E186: =SUM(B186:D186) -> 206388
A187: COGS | B187: =ROUND(B$186*$G195,2) -> 30422.63 | C187: 35257.3 | D187: 30199.64 | E187: 95879.57
A188: Operating | B188: 12756.17 | C188: 14783.34 | D188: 12662.67 | E188: 40202.17 | I188: COGS | J188: 0.4645598331
A189: Administrative | B189: 10110.37 | C189: 11717.08 | D189: 10036.27 | E189: 31863.73 | I189: Operating | J189: 0.1947892829
A190: Other | B190: 3274.35 | C190: 3794.7 | D190: 3250.35 | E190: 10319.4 | I190: Administrative | J190: 0.1543874927
A191: Total Expenses | B191: =SUM(B187:B190) -> 56563.52 | C191: =SUM(C187:C190) -> 65552.42 | D191: =SUM(D187:D190) -> 56148.93 | E191: 178264.87 | I191: Other | J191: 0.04037141295
A192: Net Income | B192: =B186-B191 -> 8923.48 | C192: =C186-C191 -> 10341.58 | D192: =D186-D191 -> 8858.07 | E192: 28123.13
A194: Assumption Table (Formula Inputs) | F194: Assumption Table
A195: COGS | B195: Operating | C195: Administrative | D195: Other | F195: =TRANSPOSE(A195:D196) -> COGS | G195: 0.4645598331 | J195: Ctrl + / to highlight current array.
A196: 0.4645598331 | B196: 0.1947892829 | C196: 0.1543874927 | D196: 0.05 | F196: Operating | G196: 0.1947892829
F197: Administrative | G197: 0.1543874927
A198: TRANSPOSE function converts a horizontal range to a vertical range, and vice versa. | F198: Other | G198: 0.05
A199: 1) Count Rows and Columns = 2 x 4
A200: 2) Highlight range that is 4 x 2 (rows and columns)
A201: 3) Use Array Function TRANSPOSE
A202: 4) Must use Ctrl + Shift + Enter because we are entering an array into multiple cells simultaneously.
A203: **Note Array of values is considered a single unit. You cannot delete one cell in the array, or insert a row. The only way to delete is to delete the whole thing.
A206: Array Formula 12: Built-in Array Function: FREQUENCY.
A207: Goal: Count how many sales are in each category.
A209: Sales | C209: Category | D209: Upper Limit | E209: Frequency | I209: Upper Limits "hard coded" into formula:
A210: 249.99 | C210: ="Sales <= "&DOLLAR(D210,0) -> Sales <= $250 | D210: 250 | E210: =FREQUENCY(A210:A222,D210:D213) -> 2 | I210: Frequency
A211: 250 | C211: =DOLLAR(D210,0)&" < Sales <= "&DOLLAR(D211,0) -> $250 < Sales <= $500 | D211: 500 | E211: 4 | I211: =FREQUENCY(A210:A222,{250;500;750;1000}) -> 2
A212: 250.01 | C212: $500 < Sales <= $750 | D212: 750 | E212: 1 | I212: 4
A213: 450 | C213: $750 < Sales <= $1,000 | D213: 1000 | E213: 5 | I213: 1
A214: 499.99 | C214: ="Sales > "&DOLLAR(D213,0) -> Sales > $1,000 | E214: 1 | I214: 5
A215: 500 | I215: 1
A216: 500.01 | C216: FREQUENCY counts how many numbers are in each category.
A217: 800 | C217: The bins_array argument contains the upper values for the categories—numbers only.
A218: 900 | C218: The data_array argument contains the values to count—numbers only.
A219: 850 | C219: FREQUENCY always creates one more category than the number of upper limits you give it.
A220: 800 | C220: Steps:
A221: 1000 | C221: 1) Highlight range that is row taller than there are Upper Limits.
A222: 2000 | C222: 2) Use Array Function FREQUENCY
C223: 3) Must use Ctrl + Shift + Enter because we are entering an array into multiple cells simultaneously.
A244: Array Formula 13: Comparative Array Operation.
A245: Goal: Get Min for each City.
A247: Location | B247: Time (Minutes) To Assemble Product | D247: Location | E247: Min Time
... 171 more rows

Sheet SizeShape
A1: Month | B1: Jan | C1: Feb | D1: Mar
A2: Revenue | B2: 100 | C2: 150 | D2: 200
A4: Assumption Table (Formula Inputs) | D4: Jan Rev
A5: COGS | B5: 0.5 | D5: 100
A6: Operating | B6: 0.2 | D6: 100
A7: Admin | B7: 0.1 | D7: 100
A8: Other | B8: 0.05 | D8: 100
A10: Calculation | B10: Formula | C10: Array Operation | E10: Size & Shape of Arrays | F10: The Math That Happens | H10: Resultant Array
A11: =SUMPRODUCT(B2*B5:B8) -> 85 | B11: =_xlfn.FORMULATEXT(A11) -> =SUMPRODUCT(B2*B5:B8) | C11: =MID(B11,SEARCH("(",B11)+1,SEARCH(")",B11)-SEARCH("(",B11)-1) -> B2*B5:B8 | D11: = | E11: Single Cell x 4 Rows is OKAY | F11: 100*0.5 + 100*0.2 + 100*0.1 + 100*0.05 | G11: = | H11: {50;20;10;5}
A12: =SUMPRODUCT(B5:B8*B2) -> 85 | B12: =_xlfn.FORMULATEXT(A12) -> =SUMPRODUCT(B5:B8*B2) | C12: =MID(B12,SEARCH("(",B12)+1,SEARCH(")",B12)-SEARCH("(",B12)-1) -> B5:B8*B2 | D12: = | E12: 4 Rows x Single Cell is OKAY | F12: 0.5*100 + 0.2*100 + 0.1*100 + 0.05*100 | G12: = | H12: {50;20;10;5}
A13: =SUMPRODUCT(B5:B8*B2:D2) -> 382.5 | B13: =SUMPRODUCT(B5:B8*B2:D2) | C13: B5:B8*B2:D2 | D13: = | E13: 4 Rows x 3 Columns OKAY | F13: 100*0.5 + 150*0.5 + 200*0.5 + 100*0.2 + 150*0.2 + 200*0.2 + 100*0.1 + 150*0.1 + 200*0.1 + 100*0.05 + 150*0.05 + 200*0.05 | G13: = | H13: {50,75,100;20,30,40;10,15,20;5,7.5,10}
A14: =SUMPRODUCT(B2:D2*B5:B8) -> 382.5 | B14: =SUMPRODUCT(B2:D2*B5:B8) | C14: B2:D2*B5:B8 | D14: = | E14: 3 Columns x 4 Rows OKAY | F14: 0.5*100 + 0.5*150 + 0.5*200 + 0.2*100 + 0.2*150 + 0.2*200 + 0.1*100 + 0.1*150 + 0.1*200 + 0.05*100 + 0.05*150 + 0.05*200 | G14: = | H14: {50,75,100;20,30,40;10,15,20;5,7.5,10}
A15: =SUMPRODUCT(B5:B8*D5:D8) -> 85 | B15: =SUMPRODUCT(B5:B8*D5:D8) | C15: B5:B8*D5:D8 | D15: = | E15: 4 Rows x 4 Rows Okay | F15: 0.5*100 + 0.2*100 + 0.1*100 + 0.05*100 | G15: = | H15: {50;20;10;5}
A16: =SUMPRODUCT(A21:D21*A23:D23) -> 85 | B16: =SUMPRODUCT(A21:D21*A23:D23) | C16: A21:D21*A23:D23 | D16: = | E16: 4 Columns by 4 Columns OKAY | F16: 0.5*100 + 0.2*100 + 0.1*100 + 0.05*100 | G16: = | H16: {50,20,10,5}
A17: =SUMPRODUCT(B5:B7*D5:D8) ->  | B17: =SUMPRODUCT(B5:B7*D5:D8) | C17: B5:B7*D5:D8 | D17: = | E17: If multiplying Rows x Rows, they MUST be same size | F17: Error | G17: = | H17: {50;20;10;#N/A}
A18: =SUMPRODUCT(A21:C21*A23:D23) ->  | B18: =SUMPRODUCT(A21:C21*A23:D23) | C18: A21:C21*A23:D23 | D18: = | E18: If multiplying Columns x Columns, they MUST be same size | F18: Error | G18: = | H18: {50,20,10,#N/A}
A20: COGS | B20: Operating | C20: Admin | D20: Other
A21: 0.5 | B21: 0.2 | C21: 0.1 | D21: 0.05
A22: Jan Rev
A23: 100 | B23: 100 | C23: 100 | D23: 100
F32: Formula in F11: =TEXTJOIN(" + ",,A38:A41) (From 2016 Insider Program)
A33: =B$2&"*"&$B5 -> 100*0.5 | B33: 150*0.5 | C33: 200*0.5
A34: 100*0.2 | B34: 150*0.2 | C34: 200*0.2
A35: 100*0.1 | B35: 150*0.1 | C35: 200*0.1
A36: 100*0.05 | B36: 150*0.05 | C36: 200*0.05
A38: =$B5&"*"&B$2 -> 0.5*100 | B38: 0.5*150 | C38: 0.5*200
A39: 0.2*100 | B39: 0.2*150 | C39: 0.2*200
A40: 0.1*100 | B40: 0.1*150 | C40: 0.1*200
A41: 0.05*100 | B41: 0.05*150 | C41: 0.05*200
A44: =B5&"*"&D5 -> 0.5*100
A45: =B6&"*"&D6 -> 0.2*100
A46: =B7&"*"&D7 -> 0.1*100
A47: =B8&"*"&D8 -> 0.05*100
A49: =A21&"*"&A23 -> 0.5*100 | B49: =B21&"*"&B23 -> 0.2*100 | C49: =C21&"*"&C23 -> 0.1*100 | D49: =D21&"*"&D23 -> 0.05*100

Sheet Homework ==>>

Sheet HW(1)
A4: Sales Rep | B4: Revenue | C4: COGS | E4: Calculate Gross Profit (Revenue - COGS) in cell D5:
A5: Jo | B5: 1944 | C5: 1166.4
A6: Mo | B6: 1570 | C6: 628
A7: Jo | B7: 1012 | C7: 607.2
A8: Jo | B8: 1088 | C8: 435.2 | E8: Calculate Max Gross Profit for Mo and Jo:
A9: Mo | B9: 759 | C9: 303.6 | E9: Sales Rep | F9: Max | I9: Max
A10: Jo | B10: 484 | C10: 242 | E10: Jo
A11: Mo | B11: 827 | C11: 413.5 | E11: Mo | H11: or
A12: Mo | B12: 704 | C12: 281.6
A13: Mo | B13: 1707 | C13: 1194.9
A14: Jo | B14: 511 | C14: 255.5 | E14: Calculate MIN Gross Profit for Mo and Jo:
A15: Jo | B15: 722 | C15: 505.4 | E15: Sales Rep | F15: Min | I15: Min
A16: Mo | B16: 183 | C16: 109.8 | E16: Jo
A17: Mo | B17: 1473 | C17: 736.5 | E17: Mo | H17: or
A18: Mo | B18: 468 | C18: 327.6
E20: Calculate Average Gross Profit for Mo and Jo:
E21: Sales Rep | F21: Gross Profit:
E22: Jo
E23: Mo | H23: or
E26: Calculate Gross Profit Standard Deviation for Mo and Jo:
E27: Sales Rep | F27: Gross Profit: | I27: Gross Profit:
E28: Jo
E29: Mo
E32: Calculate Median Standard Deviation for Mo and Jo:
E33: Sales Rep | F33: Gross Profit: | I33: Gross Profit:
E34: Jo
E35: Mo

Sheet HW(1an)
A4: Sales Rep | B4: Revenue | C4: COGS | E4: Calculate Gross Profit (Revenue - COGS) in cell D5:
A5: Jo | B5: 1944 | C5: 1166.4 | E5: =SUMPRODUCT(B5:B18-C5:C18) -> 6244.8
A6: Mo | B6: 1570 | C6: 628
A7: Jo | B7: 1012 | C7: 607.2
A8: Jo | B8: 1088 | C8: 435.2 | E8: Calculate Max Gross Profit for Mo and Jo:
A9: Mo | B9: 759 | C9: 303.6 | E9: Sales Rep | F9: Max | I9: Max
A10: Jo | B10: 484 | C10: 242 | E10: Jo | F10: =MAX(IF($A$5:$A$18=E10,$B$5:$B$18-$C$5:$C$18)) -> 777.6 | I10: =_xlfn.AGGREGATE(14,4,($A$5:$A$18=E10)*($B$5:$B$18-$C$5:$C$18),1) -> 777.6
A11: Mo | B11: 827 | C11: 413.5 | E11: Mo | F11: =MAX(IF($A$5:$A$18=E11,$B$5:$B$18-$C$5:$C$18)) -> 942 | H11: or | I11: =_xlfn.AGGREGATE(14,4,($A$5:$A$18=E11)*($B$5:$B$18-$C$5:$C$18),1) -> 942
A12: Mo | B12: 704 | C12: 281.6
A13: Mo | B13: 1707 | C13: 1194.9
A14: Jo | B14: 511 | C14: 255.5 | E14: Calculate MIN Gross Profit for Mo and Jo:
A15: Jo | B15: 722 | C15: 505.4 | E15: Sales Rep | F15: Min | I15: Min
A16: Mo | B16: 183 | C16: 109.8 | E16: Jo | F16: =MIN(IF($A$5:$A$18=E16,$B$5:$B$18-$C$5:$C$18)) -> 216.6 | I16: =_xlfn.AGGREGATE(15,6,($B$5:$B$18-$C$5:$C$18)/($A$5:$A$18=E16),1) -> 216.6
A17: Mo | B17: 1473 | C17: 736.5 | E17: Mo | F17: =MIN(IF($A$5:$A$18=E17,$B$5:$B$18-$C$5:$C$18)) -> 73.2 | H17: or | I17: =_xlfn.AGGREGATE(15,6,($B$5:$B$18-$C$5:$C$18)/($A$5:$A$18=E17),1) -> 73.2
A18: Mo | B18: 468 | C18: 327.6
E20: Calculate Average Gross Profit for Mo and Jo:
E21: Sales Rep | F21: Gross Profit:
E22: Jo | F22: =AVERAGE(IF($A$5:$A$18=E22,$B$5:$B$18-$C$5:$C$18)) -> 424.8833333
E23: Mo | F23: =AVERAGE(IF($A$5:$A$18=E23,$B$5:$B$18-$C$5:$C$18)) -> 461.9375 | H23: or
E26: Calculate Gross Profit Standard Deviation for Mo and Jo:
E27: Sales Rep | F27: Gross Profit: | I27: Gross Profit:
E28: Jo | F28: =_xlfn.STDEV.S(IF($A$5:$A$18=E28,$B$5:$B$18-$C$5:$C$18)) -> 237.6036062 | I28: =SUMPRODUCT(--($A$5:$A$18=E10),$B$5:$B$18-$C$5:$C$18) -> 2549.3
E29: Mo | F29: =_xlfn.STDEV.S(IF($A$5:$A$18=E29,$B$5:$B$18-$C$5:$C$18)) -> 284.5588563 | I29: =SUMPRODUCT(--($A$5:$A$18=E11),$B$5:$B$18-$C$5:$C$18) -> 3695.5
E32: Calculate Median Standard Deviation for Mo and Jo:
E33: Sales Rep | F33: Gross Profit: | I33: Gross Profit:
E34: Jo | F34: =MEDIAN(IF($A$5:$A$18=E34,$B$5:$B$18-$C$5:$C$18)) -> 330.15 | I34: =_xlfn.AGGREGATE(16,6,($B$5:$B$18-$C$5:$C$18)/($A$5:$A$18=E34),0.5) -> 330.15
E35: Mo | F35: =MEDIAN(IF($A$5:$A$18=E35,$B$5:$B$18-$C$5:$C$18)) -> 438.9 | I35: =_xlfn.AGGREGATE(16,6,($B$5:$B$18-$C$5:$C$18)/($A$5:$A$18=E35),0.5) -> 438.9

Sheet HW(2)
B1: Using the array function, TRANSPOSE, transpose the table below somewhere on this worksheet.
B3: Region/Sales Rep | C3: Jo | D3: Phil | E3: Dim | F3: Chin | G3: Sioux | H3: Timmy
B4: West | C4: 2042.75 | D4: 134.79 | E4: 2032.99 | F4: 1045.55 | G4: 804.55 | H4: 852.51
B5: East | C5: 296.64 | D5: 120.89 | E5: 1439.23 | F5: 100.12 | G5: 1676.61 | H5: 1732.7
B6: South | C6: 520.63 | D6: 785.3 | E6: 666.5 | F6: 1356.3 | G6: 1007.96 | H6: 178.87
B7: NorthWest | C7: 1698.67 | D7: 694.6 | E7: 166.44 | F7: 2176.94 | G7: 608.09 | H7: 1234.25

Sheet HW(2an)
B1: Using the array function, TRANSPOSE, transpose the table below somewhere on this worksheet.
B3: Region/Sales Rep | C3: Jo | D3: Phil | E3: Dim | F3: Chin | G3: Sioux | H3: Timmy
B4: West | C4: 2042.75 | D4: 134.79 | E4: 2032.99 | F4: 1045.55 | G4: 804.55 | H4: 852.51
B5: East | C5: 296.64 | D5: 120.89 | E5: 1439.23 | F5: 100.12 | G5: 1676.61 | H5: 1732.7
B6: South | C6: 520.63 | D6: 785.3 | E6: 666.5 | F6: 1356.3 | G6: 1007.96 | H6: 178.87
B7: NorthWest | C7: 1698.67 | D7: 694.6 | E7: 166.44 | F7: 2176.94 | G7: 608.09 | H7: 1234.25
B12: =TRANSPOSE(B3:H7) -> Region/Sales Rep | C12: West | D12: East | E12: South | F12: NorthWest
B13: Jo | C13: 2042.75 | D13: 296.64 | E13: 520.63 | F13: 1698.67
B14: Phil | C14: 134.79 | D14: 120.89 | E14: 785.3 | F14: 694.6
B15: Dim | C15: 2032.99 | D15: 1439.23 | E15: 666.5 | F15: 166.44
B16: Chin | C16: 1045.55 | D16: 100.12 | E16: 1356.3 | F16: 2176.94
B17: Sioux | C17: 804.55 | D17: 1676.61 | E17: 1007.96 | F17: 608.09
B18: Timmy | C18: 852.51 | D18: 1732.7 | E18: 178.87 | F18: 1234.25

Sheet HW(3)
A1: Add Top 5 Values for each Month
A3: =A7&" Top 5 Sales" -> Jan Top 5 Sales | B3: =B7&" Top 5 Sales" -> Feb Top 5 Sales | C3: Mar Top 5 Sales | D3: Apr Top 5 Sales
A7: Jan | B7: Feb | C7: Mar | D7: Apr
A8: 106303 | B8: 73170 | C8: 68152 | D8: 85474
A9: 22651 | B9: 29835 | C9: 708 | D9: 4238
A10: 51521 | B10: 61995 | C10: 80411 | D10: 68484
A11: 97311 | B11: 73219 | C11: 96866 | D11: 112463
A12: 15994 | B12: 64443 | C12: 41400 | D12: 86489
A13: 81925 | B13: 52387 | C13: 106117 | D13: 1100
A14: 30452 | B14: 104195 | C14: 33210 | D14: 11156
A15: 75856 | B15: 3380 | C15: 65 | D15: 111051
A16: 21757 | B16: 40699 | C16: 29888 | D16: 52040
A17: 31223 | B17: 74829 | C17: 75356 | D17: 73249
A18: 78304 | B18: 75657 | C18: 21713 | D18: 98459
A19: 97947 | B19: 81685 | C19: 102302 | D19: 84943
A20: 48080 | B20: 52265 | C20: 35407 | D20: 119599

Sheet HW(3an)
A1: Add Top 5 Values for each Month
A3: =A7&" Top 5 Sales" -> Jan Top 5 Sales | B3: =B7&" Top 5 Sales" -> Feb Top 5 Sales | C3: Mar Top 5 Sales | D3: Apr Top 5 Sales
A4: =SUM(LARGE(A8:A20,{1,2,3,4,5})) -> 461790 | B4: =SUM(LARGE(B8:B20,{1,2,3,4,5})) -> 409585 | C4: =SUM(LARGE(C8:C20,{1,2,3,4,5})) -> 461052 | D4: =SUM(LARGE(D8:D20,{1,2,3,4,5})) -> 528061
A7: Jan | B7: Feb | C7: Mar | D7: Apr
A8: 106303 | B8: 73170 | C8: 68152 | D8: 85474
A9: 22651 | B9: 29835 | C9: 708 | D9: 4238
A10: 51521 | B10: 61995 | C10: 80411 | D10: 68484
A11: 97311 | B11: 73219 | C11: 96866 | D11: 112463
A12: 15994 | B12: 64443 | C12: 41400 | D12: 86489
A13: 81925 | B13: 52387 | C13: 106117 | D13: 1100
A14: 30452 | B14: 104195 | C14: 33210 | D14: 11156
A15: 75856 | B15: 3380 | C15: 65 | D15: 111051
A16: 21757 | B16: 40699 | C16: 29888 | D16: 52040
A17: 31223 | B17: 74829 | C17: 75356 | D17: 73249
A18: 78304 | B18: 75657 | C18: 21713 | D18: 98459
A19: 97947 | B19: 81685 | C19: 102302 | D19: 84943
A20: 48080 | B20: 52265 | C20: 35407 | D20: 119599

Sheet HW(4)
A1: Create a formula that can add sales based on Sales Team and Region.
A3: Sales Rep | B3: Sales | C3: Region | F3: Sales Team 1 | G3: Sales Team 2 | H3: Sales Team 3 | I3: Sales Team 4
A4: Kip | B4: 457 | C4: North America | F4: June | G4: Gigi | H4: Fred | I4: Irene
A5: June | B5: 368 | C5: North America | F5: Sioux | G5: Chin | H5: Kip | I5: Al
A6: Gigi | B6: 725 | C6: South America | F6: Poppi | G6: Sandi | H6: Abdi | I6: Mel
A7: Mel | B7: 736 | C7: South America | F7: Tyrone | G7: Shelia | H7: Pham | I7: Mo
A8: Tyrone | B8: 606 | C8: South America | E8: North America
A9: Chin | B9: 1418 | C9: South America | E9: South America
A10: Abdi | B10: 1110 | C10: South America
A11: Sandi | B11: 1489 | C11: North America
A12: June | B12: 175 | C12: North America
A13: Shelia | B13: 1354 | C13: South America
A14: Pham | B14: 132 | C14: North America
A15: Gigi | B15: 449 | C15: South America
A16: Mo | B16: 1333 | C16: North America
A17: Sandi | B17: 1571 | C17: North America
A18: Chin | B18: 1553 | C18: North America
A19: Tyrone | B19: 1196 | C19: South America
A20: June | B20: 679 | C20: North America
A21: Pham | B21: 221 | C21: South America
A22: Pham | B22: 1097 | C22: North America
A23: Gigi | B23: 473 | C23: North America
A24: Tyrone | B24: 573 | C24: South America
A25: Gigi | B25: 1160 | C25: South America
A26: June | B26: 1268 | C26: North America
A27: Sandi | B27: 1635 | C27: North America
A28: Mel | B28: 152 | C28: North America
A29: Poppi | B29: 603 | C29: North America
A30: Irene | B30: 458 | C30: North America
A31: Sioux | B31: 741 | C31: South America
A32: Fred | B32: 486 | C32: North America
A33: Tyrone | B33: 1227 | C33: North America
A34: Poppi | B34: 981 | C34: North America
A35: Fred | B35: 798 | C35: North America
A36: Sioux | B36: 1191 | C36: South America
A37: Gigi | B37: 363 | C37: South America
A38: Abdi | B38: 1332 | C38: North America
A39: Mo | B39: 1289 | C39: South America
A40: Fred | B40: 1625 | C40: North America
A41: Pham | B41: 1261 | C41: South America
A42: Mo | B42: 556 | C42: North America
A43: Sandi | B43: 1441 | C43: North America
A44: Fred | B44: 337 | C44: South America
A45: Fred | B45: 284 | C45: North America

Sheet HW(4an)
A1: Create a formula that can add sales based on Sales Team and Region.
A3: Sales Rep | B3: Sales | C3: Region | F3: Sales Team 1 | G3: Sales Team 2 | H3: Sales Team 3 | I3: Sales Team 4
A4: Kip | B4: 457 | C4: North America | F4: June | G4: Gigi | H4: Fred | I4: Irene
A5: June | B5: 368 | C5: North America | F5: Sioux | G5: Chin | H5: Kip | I5: Al
A6: Gigi | B6: 725 | C6: South America | F6: Poppi | G6: Sandi | H6: Abdi | I6: Mel
A7: Mel | B7: 736 | C7: South America | F7: Tyrone | G7: Shelia | H7: Pham | I7: Mo
A8: Tyrone | B8: 606 | C8: South America | E8: North America | F8: =SUMPRODUCT(SUMIFS($B$4:$B$45,$C$4:$C$45,$E8,$A$4:$A$45,F$4:F$7)) -> 5301 | G8: 8162 | H8: 6211 | I8: 2499
A9: Chin | B9: 1418 | C9: South America | E9: South America | F9: 4307 | G9: 5469 | H9: 2929 | I9: 2025
A10: Abdi | B10: 1110 | C10: South America
A11: Sandi | B11: 1489 | C11: North America | E11: Check: | F11: Sales Rep | G11: (Multiple Items) | J11: <<== Takes Longer to create PivotTAbles
A12: June | B12: 175 | C12: North America
A13: Shelia | B13: 1354 | C13: South America | F13: Row Labels | G13: Sum of Sales
A14: Pham | B14: 132 | C14: North America | F14: North America | G14: 5301
A15: Gigi | B15: 449 | C15: South America | F15: South America | G15: 4307
A16: Mo | B16: 1333 | C16: North America | F16: Grand Total | G16: 9608
A17: Sandi | B17: 1571 | C17: North America
A18: Chin | B18: 1553 | C18: North America | G18: Sales Rep | H18: (Multiple Items)
A19: Tyrone | B19: 1196 | C19: South America
A20: June | B20: 679 | C20: North America | G20: Row Labels | H20: Sum of Sales
A21: Pham | B21: 221 | C21: South America | G21: North America | H21: 8162
A22: Pham | B22: 1097 | C22: North America | G22: South America | H22: 5469
A23: Gigi | B23: 473 | C23: North America | G23: Grand Total | H23: 13631
A24: Tyrone | B24: 573 | C24: South America
A25: Gigi | B25: 1160 | C25: South America | H25: Sales Rep | I25: (Multiple Items)
A26: June | B26: 1268 | C26: North America
A27: Sandi | B27: 1635 | C27: North America | H27: Row Labels | I27: Sum of Sales
A28: Mel | B28: 152 | C28: North America | H28: North America | I28: 6211
A29: Poppi | B29: 603 | C29: North America | H29: South America | I29: 2929
A30: Irene | B30: 458 | C30: North America | H30: Grand Total | I30: 9140
A31: Sioux | B31: 741 | C31: South America
A32: Fred | B32: 486 | C32: North America | I32: Sales Rep | J32: (Multiple Items)
A33: Tyrone | B33: 1227 | C33: North America
A34: Poppi | B34: 981 | C34: North America | I34: Row Labels | J34: Sum of Sales
A35: Fred | B35: 798 | C35: North America | I35: North America | J35: 2499
A36: Sioux | B36: 1191 | C36: South America | I36: South America | J36: 2025
A37: Gigi | B37: 363 | C37: South America | I37: Grand Total | J37: 4524
A38: Abdi | B38: 1332 | C38: North America
A39: Mo | B39: 1289 | C39: South America
A40: Fred | B40: 1625 | C40: North America
A41: Pham | B41: 1261 | C41: South America
A42: Mo | B42: 556 | C42: North America
A43: Sandi | B43: 1441 | C43: North America
A44: Fred | B44: 337 | C44: South America
A45: Fred | B45: 284 | C45: North America
